Cogmind - Beta 12 @@@ ROGUE MODE // 2023.03.29 @ 11:33:38 Player: btmk16 Result: Self-destructed Performance ------------- Evolutions (4) 2000 Regions Visited (15) 3000 Robots Destroyed (255) 1275 Value Destroyed (6534) 6534 Prototype IDs (30) 600 Alien Tech Used (0) 0 Bonus (982) 982 TOTAL SCORE: 14391 Bonus ------- High Alert Combat Kills 454 Follower Combat Kills 379 Met Data Miner 300 Friendly Fire -151 Cogmind --------- Core Integrity 382/850 Matter 35/300 Energy 290/290 System Corruption 7% Temperature Warm (145) Movement Walking (190) Ox1 Location -6/Factory Parts ------- > --- POWER (1) -------- Improved Deuterium Engine > --- PROPULSION (4) --- Carbon-fiber Leg Flexi-carbon Leg > --- UTILITY (8) ------ Coolant Injector Improved Signal Interpreter Improved Heavy Armor Plating Layered Light Armor Plating Hacking Suite Hacking Suite > --- WEAPON (2) ------- Magnetic Acceleration Cannon Antimatter Cannon > --- INVENTORY (5) ---- Humpback Proton Missile Launcher Heavy Missile Launcher Spear Peak State ------------ > --- POWER ------------ Micro Nuclear Core > --- PROPULSION ------- Improved Gravmag System Gravmag Array Improved Cesium-ion Thruster > --- UTILITY ---------- Medium Storage Unit Experimental Sensor Array Improved Signal Interpreter Improved Terrain Scanner Improved Terrain Scan Processor Transmission Jammer Improved Light Armor Plating System Shield > --- WEAPON ----------- Chainsword Spear > --- INVENTORY -------- Improved Cesium-ion Thruster Humpback Layered Light Armor Plating Layered Light Armor Plating Advanced Assault Cannon Proton Missile Launcher Heavy Missile Launcher Great Axe [Rating: 64] Favorites ----------- Power Micro Nuclear Core Engine Light Deuterium Engine Power Core Micro Nuclear Core Propulsion Improved Cesium-ion Thruster Treads Armored Treads Leg Carbon-fiber Leg Wheel Wheel Hover Unit Gravmag Array Flight Unit Improved Cesium-ion Thruster Utility Hacking Suite Device Experimental Sensor Array Storage Large Storage Unit Processor Improved Signal Interpreter Hackware Hacking Suite Protection Light Armor Plating Weapon Heavy Assault Rifle Energy Gun Particle Gun Ballistic Gun Heavy Assault Rifle Ballistic Cannon Antimatter Cannon Launcher Heavy Missile Launcher Impact Weapon Heavy Flail Slashing Weapon Chainsword Piercing Weapon Spear Build | -11 -10 -10 -9 -9 -9 -8 -8 -7 -7 -7 -7 -7 -7 -6 -6 ------- Run | Jun Mat Min Mat Min Exi Min Mat Fac Was Fac Low Low Dat Pro Fac Slots Evolved 8 | . . . 2 . . . 2 2 . . . . . . 2 Power . | . . . . . . . . . . . . . . . . Propulsion 2 | . . . 1 . . . . 1 . . . . . . . Utility 6 | . . . 1 . . . 2 1 . . . . . . 2 Weapon . | . . . . . . . . . . . . . . . . Parts Attached 221 | 7 11 7 30 5 . 5 27 43 4 23 8 4 . 8 39 Power 21 | 1 1 1 1 1 . . 5 7 . 2 . . . . 2 Engine 16 | 1 1 1 1 1 . . 4 4 . 1 . . . . 2 Core 5 | . . . . . . . 1 3 . 1 . . . . . Reactor . | . . . . . . . . . . . . . . . . Propulsion 46 | 2 . 4 15 . . . 5 4 . 1 . . . . 15 Treads 23 | 2 . . 12 . . . 5 . . . . . . . 4 Leg 4 | . . . . . . . . . . . . . . . 4 Wheel 11 | . . 4 3 . . . . . . . . . . . 4 Hover 2 | . . . . . . . . . . . . . . . 2 Flight 6 | . . . . . . . . 4 . 1 . . . . 1 Utility 66 | 2 4 1 9 1 . 1 10 12 2 9 2 . . . 13 Device 22 | 1 . . . . . 1 5 4 1 6 1 . . . 3 Storage 9 | 1 2 . 1 . . . . 3 . . . . . . 2 Processor 5 | . . . . . . . . 2 1 1 1 . . . . Hackware 8 | . . . 1 . . . 1 3 . 1 . . . . 2 Protection 22 | . 2 1 7 1 . . 4 . . 1 . . . . 6 Artifact . | . . . . . . . . . . . . . . . . Weapon 88 | 2 6 1 5 3 . 4 7 20 2 11 6 4 . 8 9 Energy Gun 3 | 1 . . . . . 2 . . . . . . . . . Energy Cannon . | . . . . . . . . . . . . . . . . Ballistic Gun 23 | 1 6 1 5 2 . 2 4 2 . . . . . . . Ballistic Cannon 15 | . . . . . . . . 5 . . 1 1 . 3 5 Launcher 17 | . . . . 1 . . 1 3 1 6 1 1 . 1 2 Special Weapon . | . . . . . . . . . . . . . . . . Impact Weapon 1 | . . . . . . . . 1 . . . . . . . Slashing Weapon 18 | . . . . . . . 2 9 1 4 1 . . . 1 Piercing Weapon 11 | . . . . . . . . . . 1 3 2 . 4 1 Special Melee Weapon . | . . . . . . . . . . . . . . . . Unidentified Prototypes 3 | . . . . . . . 1 1 1 . . . . . . Corrupted Parts 1 | . . . . . . . . . 1 . . . . . . System Corruption 4 | . . . . . . . . . 4 . . . . . . Parts Lost 60 | . . 4 9 2 . 4 5 8 . 4 . . . 1 23 Power 6 | . . . 1 . . . 2 1 . 1 . . . . 1 Propulsion 21 | . . 2 4 . . . 1 2 . 1 . . . 1 10 Utility 23 | . . 1 1 1 . 1 2 5 . 2 . . . . 10 Weapon 10 | . . 1 3 1 . 3 . . . . . . . . 2 Highest Loss Streak 9 | . . 4 3 2 . 2 2 3 . 2 . . . 1 9 To Critical Strikes . | . . . . . . . . . . . . . . . . Average Slot Usage (%) 94 | . 99 98 91 100 100 97 97 90 87 91 100 100 100 99 78 Engine 5 | . 14 14 3 11 11 11 5 4 . . . . . . 4 Core 2 | . . . . . . . 2 2 7 6 7 7 7 7 1 Treads 15 | . 28 4 25 33 33 33 26 5 . . . . . . 6 Wheel 2 | . . 22 7 . . . . . . . . . . . 3 Flight 10 | . . . . . . . . 22 30 29 30 30 30 29 1 Device 7 | . . . . . . 3 9 14 5 4 15 15 15 15 8 Storage 9 | . 14 14 11 11 11 11 9 7 7 7 7 7 7 7 5 Processor 5 | . . . . . . . . 7 20 16 15 15 15 15 10 Hackware 9 | . . . 8 11 11 11 15 12 7 14 7 7 7 7 8 Protection 6 | . 13 13 12 11 11 7 9 1 . . . . . . 4 Ballistic Gun 12 | . 26 27 21 22 22 14 17 3 . . . . . . . Slashing Weapon 2 | . . . . . . . . 4 6 6 7 7 7 7 5 Piercing Weapon 1 | . . . . . . . . . . . 6 5 7 6 . Naked Turns . | . . . . . . . . . . . . . . . . Heaviest Build 61 | 13 37 37 38 44 44 44 48 61 23 27 23 23 23 23 56 Greatest Support 60 | 40 40 40 60 60 60 60 60 60 24 24 24 24 24 24 40 Greatest Overweight (x) 4 | . . 1 1 . . . . 4 . 1 . . . 1 4 Average Overweight (x) . | . . . . . . . . . . . . . . . . Largest Inventory Capacity 35 | 8 15 15 15 15 15 15 15 20 10 10 10 10 10 10 35 Average Capacity 12 | 7 13 15 15 15 15 15 15 12 10 10 10 10 10 10 10 Most Carried 18 | 6 15 15 15 15 15 15 15 18 10 10 10 10 10 10 10 Average Carried 12 | 4 12 14 14 14 15 15 14 11 9 9 8 10 10 10 9 Final Capacity 15 | 8 15 15 15 15 15 15 15 10 10 10 10 10 10 10 5 Final Carried 15 | 6 15 15 15 15 15 15 15 10 10 10 10 10 10 10 5 Class Distribution -------------------- 39% | Mutant 14% | Scout 13% | Hacker-Mutant 12% | Hacker-Sprinter 11% | Scavenger-Mutant 4% | Sprinter Dominant Class ---------------- Mutant | -10/Materials Mutant | -10/Mines Mutant | -9/Materials Mutant | -9/Mines Mutant | -9/Exiles Mutant | -8/Mines Hacker-Mutant | -8/Materials Hacker-Sprinter | -7/Factory Sprinter | -7/Waste Hacker-Sprinter | -7/Factory Scout | -7/Lower Caves Scout | -7/Lower Caves Scout | -7/Data Miner Scout | -6/Proximity Caves Scavenger-Mutant | -6/Factory Resources | -11 -10 -10 -9 -9 -9 -8 -8 -7 -7 -7 -7 -7 -7 -6 -6 ----------- Run | Jun Mat Min Mat Min Exi Min Mat Fac Was Fac Low Low Dat Pro Fac Matter Collected 7006 | 284 452 347 1025 169 . 121 1754 1089 . 449 277 50 . 285 704 Remotely . | . . . . . . . . . . . . . . . . Salvage Created 9417 | 89 611 175 1615 249 . 267 2397 1943 . 913 176 35 . 22 925 Parts 545 | 8 41 3 110 14 . 16 138 89 . 57 9 6 . 6 48 Haulers Intercepted 18 | . 2 . 5 . . . 5 3 . 3 . . . . . Recyclers Shooed 7 | . . . 2 . . . 2 3 . . . . . . . Parts Field Recycled . | . . . . . . . . . . . . . . . . Retrieved Matter . | . . . . . . . . . . . . . . . . Parts Self-Destructed 29 | . . . . . . . . . . . 9 4 . 16 . Prevented . | . . . . . . . . . . . . . . . . Kills | -11 -10 -10 -9 -9 -9 -8 -8 -7 -7 -7 -7 -7 -7 -6 -6 ------- Run | Jun Mat Min Mat Min Exi Min Mat Fac Was Fac Low Low Dat Pro Fac Combat Hostiles Destroyed 161 | . 11 9 29 8 . 7 38 20 . 10 3 4 . 4 18 Melee 6 | . . . . . . . . 2 . 1 . . . . 3 Guns 110 | . 11 9 29 5 . 7 36 13 . . . . . . . Cannons 10 | . . . . . . . . . . . . . . . 10 AOE 33 | . . . . 3 . . 2 5 . 9 3 4 . 4 3 Classes Destroyed 19 | 2 6 2 2 . . . 4 2 . . . . . . 1 Worker 18 | . 1 . 2 . . . 2 3 . 8 . . . . 2 Builder 15 | . 3 1 1 1 . . 2 4 . . . . . . 3 Tunneler 8 | 2 . . 1 . . 2 1 1 . . . . . . 1 Hauler 18 | . 2 . 5 . . . 5 3 . 3 . . . . . Recycler 24 | 1 1 . 1 . . . 3 10 . 7 . . . . 1 Mechanic 2 | . . . . . . . 1 . . . . . . . 1 Operator 6 | . . . 1 . . . 2 . . 1 . . . . 2 Watcher 10 | . 1 . 3 . . . . 4 . 1 . . . . 1 Swarmer 52 | . 5 . 5 3 . 4 4 5 . 10 3 4 . 4 5 Grunt 66 | . 6 . 16 5 . 3 20 10 . . . . . . 6 Brawler 1 | . . . . . . . . 1 . . . . . . . Duelist 3 | . . . . . . . 2 1 . . . . . . . Protector 1 | . . . . . . . 1 . . . . . . . . Sentry 20 | . . . 8 . . . 9 . . . . . . . 3 Demolisher 2 | . . 2 . . . . . . . . . . . . . Hunter 4 | . . . . . . . 2 . . . . . . . 2 Programmer 4 | . . . . . . . . 3 . . . . . . 1 Behemoth 1 | . . . . . . . . . . . . . . . 1 Assembled 7 | . . 7 . . . . . . . . . . . . . Best Kill Streak 9 | 3 6 5 4 3 . 4 6 9 . 9 3 4 . 4 4 Combat Bots Only 6 | . 6 5 3 3 . 4 6 5 . 4 3 4 . 4 4 Max Kills in Single Turn 3 | 1 2 2 1 2 . 1 2 2 . 3 2 2 . 2 3 Gunslinging . | . . . . . . . . . . . . . . . . Exploded 3 | . . . . 2 . . 2 2 . 2 2 2 . 2 3 Melee 1 | . . . . . . . . 1 . 1 . . . . 1 Uniques/NPCs Destroyed . | . . . . . . . . . . . . . . . . Combat | -11 -10 -10 -9 -9 -9 -8 -8 -7 -7 -7 -7 -7 -7 -6 -6 -------- Run | Jun Mat Min Mat Min Exi Min Mat Fac Was Fac Low Low Dat Pro Fac Damage Taken 10969 | . 316 867 1534 285 . 654 2397 902 . 653 54 26 . 130 3151 Core 1390 | . 31 162 154 14 . 60 150 114 . 190 13 5 . 29 468 Absorbed by Shields . | . . . . . . . . . . . . . . . . Regen/Repaired (Parts) 193 | . . . 11 . . . 101 . 44 37 . . . . . Core Remaining (%) 57 | 100 . 22 . . . 43 72 . . . . . . 49 . Volleys Fired 640 | 14 49 34 131 17 . 37 183 83 . 11 9 7 . 8 57 Largest 2 | 2 2 2 2 2 . 2 2 2 . 1 1 1 . 1 2 Hottest 93 | 60 46 46 46 46 . 85 50 61 . 39 48 48 . 48 93 Shots Fired 1163 | 27 98 67 261 31 . 54 363 130 . 11 9 7 . 8 97 Gun 988 | 27 98 67 261 28 . 54 362 91 . . . . . . . Cannon 139 | . . . . . . . . 32 . . 7 5 . 5 90 Launcher 36 | . . . . 3 . . 1 7 . 11 2 2 . 3 7 Special . | . . . . . . . . . . . . . . . . Kinetic 1107 | 14 98 67 261 28 . 47 362 123 . . 7 5 . 5 90 Thermal 20 | 13 . . . . . 7 . . . . . . . . . Explosive 30 | . . . . 3 . . 1 7 . 11 2 2 . 3 1 Electromagnetic 6 | . . . . . . . . . . . . . . . 6 Robot Hit Streak 18 | 6 7 10 18 12 . 8 15 10 . 6 . . . 4 8 Robot Miss Streak 7 | 2 7 3 3 2 . 3 4 5 . 3 . . . . 5 Penetration Max . | . . . . . . . . . . . . . . . . Secondary Targets 11 | . 2 1 2 1 . . 4 1 . . . . . . . Max Gunslinging Chain 1 | . 1 1 1 1 . . 1 1 . . . . . . . Shots Hit Robots 840 | 18 55 43 199 24 . 39 251 96 . 31 3 . . 1 80 Core Hits 380 | 6 21 22 61 12 . 19 96 53 . 29 9 6 . 4 42 Critical Kills 4 | . . . . . . . 3 1 . . . . . . . Critical Parts Destroyed 7 | . . . 2 . . . 4 1 . . . . . . . Critical Strikes 22 | . . . 2 . . . 7 3 . 3 . . . . 7 Destroy 11 | . . . 2 . . . 7 2 . . . . . . . Blast 4 | . . . . . . . . . . . . . . . 4 Sever 7 | . . . . . . . . 1 . 3 . . . . 3 Melee Attacks 251 | . . . . . . . . 95 7 75 10 14 . 5 45 Impact 1 | . . . . . . . . 1 . . . . . . . Slashing 211 | . . . . . . . . 94 7 67 1 3 . 1 38 Piercing 39 | . . . . . . . . . . 8 9 11 . 4 7 Sneak Attacks 41 | . . . . . . . . 21 . 14 . . . . 6 Combat Hostiles 1 | . . . . . . . . 1 . . . . . . . Follow-up Attacks 6 | . . . . . . . . . . . . . . . 6 Damage Inflicted 22204 | 172 863 693 3008 622 . 475 4530 4483 . 3176 404 220 . 276 3282 Guns 11014 | 172 863 693 3008 370 . 475 4327 1106 . . . . . . . Cannons 1677 | . . . . . . . . 31 . . . . . . 1646 Explosions 3249 | . . . . 252 . . 203 751 . 1013 243 220 . 276 291 Melee 6264 | . . . . . . . . 2595 . 2163 161 . . . 1345 Ramming . | . . . . . . . . . . . . . . . . Kinetic 12503 | 94 863 693 3008 370 . 365 4327 1137 . . . . . . 1646 Thermal 198 | 78 . . . . . 110 . 10 . . . . . . . Explosive 3084 | . . . . 252 . . 203 741 . 1013 243 220 . 276 136 Electromagnetic 155 | . . . . . . . . . . . . . . . 155 Impact . | . . . . . . . . . . . . . . . . Slashing 5935 | . . . . . . . . 2595 . 1995 . . . . 1345 Piercing 329 | . . . . . . . . . . 168 161 . . . . Highest Corruption 10 | . . . . . . . 8 1 10 10 5 5 5 5 7 Average Corruption 5 | . . . . . . . 3 1 8 8 5 5 5 5 7 Corruption Purged 5 | . . . . . . . . . . 5 . . . . . Corruption Blocked 6 | . . . . . . . . . 6 . . . . . . Effects 163 | . . . . . . . 23 7 5 34 29 22 . 12 31 Message Errors 37 | . . . . . . . 3 1 4 7 7 6 . 4 5 Matter Fused 54 | . . . . . . . 7 2 1 13 9 6 . 4 12 Heat Flow Errors 9 | . . . . . . . 3 1 . 1 1 1 . 1 1 Energy Discharges 18 | . . . . . . . 1 . . 5 4 2 . 2 4 Parts Rejected 1 | . . . . . . . 1 . . . . . . . . Parts Fused 2 | . . . . . . . . . . . 1 . . . 1 Data Loss (minor) 22 | . . . . . . . 2 1 . 7 4 3 . 1 4 Data Loss (major) 11 | . . . . . . . 1 1 . . 3 4 . . 2 Misfires 2 | . . . . . . . 1 . . . . . . . 1 Alerts 2 | . . . . . . . 1 1 . . . . . . . Misdirections 1 | . . . . . . . . . . 1 . . . . . Weapon Failures 4 | . . . . . . . 3 . . . . . . . 1 Overload Shots . | . . . . . . . . . . . . . . . . Overflow Damage 1317 | . . . . . . . . 710 . 433 . . . 33 141 Projectiles 45 | . . . . . . . . . . . . . . . 45 Explosions 134 | . . . . . . . . 83 . 18 . . . 33 . Melee 1138 | . . . . . . . . 627 . 415 . . . . 96 Knockbacks 23 | . . . . . . . . . . . . . . . 23 Impact . | . . . . . . . . . . . . . . . . Kinetic 21 | . . . . . . . . . . . . . . . 21 Secondary 2 | . . . . . . . . . . . . . . . 2 Self-Inflicted Damage 126 | . . . . . . . . 25 . 75 . . . 26 . Shots 4 | . . . . . . . . 1 . 2 . . . 1 . Rammed . | . . . . . . . . . . . . . . . . Targets Rammed . | . . . . . . . . . . . . . . . . Kicked . | . . . . . . . . . . . . . . . . Crushed . | . . . . . . . . . . . . . . . . Highest Temperature 285 | 80 58 262 28 22 . 285 192 198 . 234 144 245 . 105 202 Average Temperature 45 | 39 17 72 11 10 . 99 44 97 . 68 41 72 . 27 51 Received Heat Transfer 2961 | . 84 180 639 129 . 279 792 237 . 72 . 6 . 18 525 Effects 1 | . . 1 . . . . . . . . . . . . . Energy Bleed 1 | . . 1 . . . . . . . . . . . . . Siege Activations . | . . . . . . . . . . . . . . . . Robots Corrupted 1 | . . . . . . . . . . . . . . . 1 Combat Hostiles 1 | . . . . . . . . . . . . . . . 1 Parts Fried 5 | . . 1 . . . . . . . . . . . . 4 Impact Corruptions 1 | . . . . . . . . . . . . . . . 1 Robots Melted . | . . . . . . . . . . . . . . . . Combat Hostiles . | . . . . . . . . . . . . . . . . Parts Melted 2 | . . . . . . 2 . . . . . . . . . Heat Transferred 484 | 175 . . . . . 259 . 50 . . . . . . . Parts Sabotaged . | . . . . . . . . . . . . . . . . Parts Stolen . | . . . . . . . . . . . . . . . . Parts Stripped . | . . . . . . . . . . . . . . . . Power Chain Reactions . | . . . . . . . . . . . . . . . . Missiles Intercepted . | . . . . . . . . . . . . . . . . Alert | -11 -10 -10 -9 -9 -9 -8 -8 -7 -7 -7 -7 -7 -7 -6 -6 ------- Run | Jun Mat Min Mat Min Exi Min Mat Fac Was Fac Low Low Dat Pro Fac Peak Influence 1118 | 15 200 70 341 256 . 85 690 1118 439 892 . . . . 292 Initial 387 | . 9 16 . 108 . . . 313 387 250 . . . . 21 Average 324 | 6 69 27 237 99 . 30 390 785 410 545 . . . . 96 Maximum Alert Level 4 | . 1 . 1 1 . . 2 4 2 3 . . . . 1 Low Security (%) 44 | 100 90 100 24 98 . 100 21 . . . . . . . 96 Level 1 23 | . 9 . 75 1 . . 13 14 18 37 . . . . 3 Level 2 18 | . . . . . . . 64 19 81 29 . . . . . Level 3 13 | . . . . . . . . 65 . 32 . . . . . Level 4 . | . . . . . . . . . . . . . . . . Level 5 . | . . . . . . . . . . . . . . . . High Security . | . . . . . . . . . . . . . . . . Max Security . | . . . . . . . . . . . . . . . . Squads Dispatched 41 | . 2 . 3 . . . 6 16 . 7 . . . . 7 Investigation 15 | . 2 . 2 . . . . 5 . 3 . . . . 3 Extermination 3 | . . . . . . . . 2 . . . . . . 1 Reinforcement 12 | . . . 1 . . . 4 2 . 2 . . . . 3 Assault 3 | . . . . . . . 1 1 . 1 . . . . . Garrison 8 | . . . . . . . 1 6 . 1 . . . . . Intercept . | . . . . . . . . . . . . . . . . Searches Triggered . | . . . . . . . . . . . . . . . . Data Miner Redirects 1 | . . . . . . . . . . . . . . . 1 Construction Impeded 3 | . . . . . . . 1 1 . . . . . . 1 Haulers Reinforced 2 | . . . . . . . . . . 1 . . . . 1 Active Scanning Responses . | . . . . . . . . . . . . . . . . Cargo Convoy Interrupts 1 | . . . . . . . . 1 . . . . . . . Stealth | -11 -10 -10 -9 -9 -9 -8 -8 -7 -7 -7 -7 -7 -7 -6 -6 --------- Run | Jun Mat Min Mat Min Exi Min Mat Fac Was Fac Low Low Dat Pro Fac Distress Signals 10 | . 4 . 4 . . . 2 . . . . . . . . Communications Jammed 7 | . . . . . . . . . . . . . . . 7 Distress Signals 7 | . . . . . . . . . . . . . . . 7 Times Spotted 303 | . 20 14 42 9 . 7 60 60 12 39 5 4 . 6 25 Peak Tracking Total 9 | . 5 7 4 3 . 4 7 8 6 9 5 3 . 4 4 Tactical Retreats 38 | . 1 2 3 1 . . 2 12 1 12 1 2 . . 1 Traps | -11 -10 -10 -9 -9 -9 -8 -8 -7 -7 -7 -7 -7 -7 -6 -6 ------- Run | Jun Mat Min Mat Min Exi Min Mat Fac Was Fac Low Low Dat Pro Fac Traps Triggered 11 | . 2 . 2 . . . 1 3 . 2 . . . . 1 Indirectly . | . . . . . . . . . . . . . . . . Trap Hack Attempts . | . . . . . . . . . . . . . . . . Triggered . | . . . . . . . . . . . . . . . . Disarmed . | . . . . . . . . . . . . . . . . Reprogrammed . | . . . . . . . . . . . . . . . . Reused . | . . . . . . . . . . . . . . . . Traps Extracted . | . . . . . . . . . . . . . . . . Installed . | . . . . . . . . . . . . . . . . Triggered 1 | . . . . . . . . 1 . . . . . . . Machines | -11 -10 -10 -9 -9 -9 -8 -8 -7 -7 -7 -7 -7 -7 -6 -6 ---------- Run | Jun Mat Min Mat Min Exi Min Mat Fac Was Fac Low Low Dat Pro Fac Machines Disabled 16 | . 1 1 . . . . 2 5 . 4 . . . . 3 Max in Single Turn 2 | . 1 1 . . . . 1 2 . 1 . . . . 1 Garrison Access 5 | . . . . . . . . 2 . 2 . . . . 1 Machines Repaired . | . . . . . . . . . . . . . . . . Machines Sabotaged . | . . . . . . . . . . . . . . . . Overloaded Fab Kills . | . . . . . . . . . . . . . . . . Hacking | -11 -10 -10 -9 -9 -9 -8 -8 -7 -7 -7 -7 -7 -7 -6 -6 --------- Run | Jun Mat Min Mat Min Exi Min Mat Fac Was Fac Low Low Dat Pro Fac Machines Accessed 77 | . 4 . 11 1 1 . 10 22 . 19 . . 3 . 6 Terminals 47 | . 4 . 9 . . . 8 12 . 11 . . . . 3 Fabricators 9 | . . . . . . . . 4 . 4 . . . . 1 Repair Stations 5 | . . . 1 . . . 1 1 . 2 . . . . . Recycling Units . | . . . . . . . . . . . . . . . . Scanalyzers 5 | . . . 1 . . . 1 3 . . . . . . . Garrison Access 6 | . . . . . . . . 2 . 2 . . . . 2 Total Hacks 216 | . 10 . 33 1 1 . 37 56 . 41 . . 26 . 11 Successful 121 | . 4 . 17 1 1 . 17 30 . 19 . . 26 . 6 Failed 95 | . 6 . 16 . . . 20 26 . 22 . . . . 5 Catastrophic 25 | . 2 . 2 . . . 4 6 . 8 . . . . 3 Database Lockouts . | . . . . . . . . . . . . . . . . Manual 80 | . 9 . 10 . . . 19 16 . 21 . . . . 5 Terminals 129 | . 10 . 28 . . . 31 31 . 24 . . . . 5 Fabricators 22 | . . . . . . . . 9 . 10 . . . . 3 Repair Stations 10 | . . . 2 . . . 2 2 . 4 . . . . . Recycling Units . | . . . . . . . . . . . . . . . . Scanalyzers 18 | . . . 3 . . . 4 11 . . . . . . . Garrison Access 9 | . . . . . . . . 3 . 3 . . . . 3 Terminal Hacks 63 | . 4 . 9 1 1 . 8 9 . 5 . . 26 . . Record 7 | . . . . . 1 . . . . . . . 6 . . Part Schematic 14 | . . . . . . . . 2 . 1 . . 11 . . Robot Schematic 6 | . . . . . . . . . . . . . 6 . . Robot Analysis 4 | . 2 . . . . . 2 . . . . . . . . Prototype ID Bank 13 | . 2 . 4 . . . 2 2 . . . . 3 . . Open Door 1 | . . . . 1 . . . . . . . . . . . Branch Access Points 1 | . . . . . . . 1 . . . . . . . . Terminal Index 4 | . . . . . . . 1 1 . 2 . . . . . Fabricator Index 1 | . . . . . . . . . . 1 . . . . . Alert Level 2 | . . . 1 . . . . 1 . . . . . . . Unreport Threat 1 | . . . . . . . . 1 . . . . . . . Locate Traps 1 | . . . 1 . . . . . . . . . . . . Security Status 1 | . . . . . . . 1 . . . . . . . . Transport Status 1 | . . . . . . . . 1 . . . . . . . Recall Investigation 1 | . . . 1 . . . . . . . . . . . . Recall Extermination 1 | . . . . . . . . 1 . . . . . . . Hauler Manifests 1 | . . . . . . . 1 . . . . . . . . Zone Layout 3 | . . . 2 . . . . . . 1 . . . . . Fabricator Hacks 11 | . . . . . . . . 3 . 6 . . . . 2 Network Status 1 | . . . . . . . . 1 . . . . . . . Load Schematic 5 | . . . . . . . . 1 . 3 . . . . 1 Build 5 | . . . . . . . . 1 . 3 . . . . 1 Repair Station Hacks 8 | . . . 2 . . . 2 2 . 2 . . . . . Scan Component 5 | . . . 1 . . . 1 1 . 2 . . . . . Repair 3 | . . . 1 . . . 1 1 . . . . . . . Recycling Unit Hacks . | . . . . . . . . . . . . . . . . Scanalyzer 15 | . . . 2 . . . 3 10 . . . . . . . Insert Component 7 | . . . 1 . . . 1 5 . . . . . . . Analyze 8 | . . . 1 . . . 2 5 . . . . . . . Garrison Access Hacks 5 | . . . . . . . . 2 . 2 . . . . 1 Seal Access 5 | . . . . . . . . 2 . 2 . . . . 1 Unauthorized Hacks 19 | . . . 4 . . . 4 4 . 4 . . . . 3 Terminals 15 | . . . 4 . . . 4 2 . 2 . . . . 3 Track 4 | . . . 3 . . . . 1 . . . . . . . Assimilate 1 | . . . . . . . . . . . . . . . 1 Botnet 6 | . . . . . . . 3 1 . 1 . . . . 1 Operators 4 | . . . 1 . . . 1 . . 1 . . . . 1 Fabricators 4 | . . . . . . . . 2 . 2 . . . . . Prioritize 1 | . . . . . . . . 1 . . . . . . . Liberate 2 | . . . . . . . . 1 . 1 . . . . . Haulers 1 | . . . . . . . . . . 1 . . . . . Repair Stations . | . . . . . . . . . . . . . . . . Recycling Units . | . . . . . . . . . . . . . . . . Scanalyzers . | . . . . . . . . . . . . . . . . Garrison Access . | . . . . . . . . . . . . . . . . Data Cores Recovered . | . . . . . . . . . . . . . . . . Used . | . . . . . . . . . . . . . . . . Hacking Detections 58 | . 3 . 8 . . . 10 18 . 14 . . . . 5 Full Trace Events 11 | . . . 2 . . . . 4 . 2 . . . . 3 Feedback Events 2 | . . . . . . . . 2 . . . . . . . Corruption 1 | . . . . . . . . 1 . . . . . . . Hackware Fried 1 | . . . . . . . . 1 . . . . . . . Feedback Blocked . | . . . . . . . . . . . . . . . . Robot Schematics Acquired 6 | . . . . . . . . . . . . . 6 . . Robots Built 5 | . . . . . . . . 3 . 2 . . . . . Authchips . | . . . . . . . . . . . . . . . . Time 233 | . . . . . . . . 134 . 99 . . . . . Total Robot Build Rating 16 | . . . . . . . . 12 . 4 . . . . . Part Schematics Acquired 17 | . . . . . . . 1 5 . . . . 11 . . Parts Built 3 | . . . . . . . . . . 3 . . . . . Authchips . | . . . . . . . . . . . . . . . . Time 330 | . . . . . . . . . . 246 . . . . 84 Total Part Build Rating 16 | . . . . . . . . . . 16 . . . . . Parts Repaired 3 | . . . 1 . . . 1 1 . . . . . . . Time 257 | . . . 136 . . . 60 61 . . . . . . . Parts Recycled . | . . . . . . . . . . . . . . . . Recycled Matter . | . . . . . . . . . . . . . . . . Retrieved Matter . | . . . . . . . . . . . . . . . . Retrieved Components . | . . . . . . . . . . . . . . . . Parts Scanalyzed 4 | . . . 1 . . . . 3 . . . . . . . Part Schematics Acquired 4 | . . . . . . . 1 3 . . . . . . . Parts Damaged 1 | . . . . . . . . 1 . . . . . . . Bothacking | -11 -10 -10 -9 -9 -9 -8 -8 -7 -7 -7 -7 -7 -7 -6 -6 ------------ Run | Jun Mat Min Mat Min Exi Min Mat Fac Was Fac Low Low Dat Pro Fac Used RIF Installer . | . . . . . . . . . . . . . . . . Robots Hacked . | . . . . . . . . . . . . . . . . Non-combat . | . . . . . . . . . . . . . . . . Combat . | . . . . . . . . . . . . . . . . Robot Hacks Applied . | . . . . . . . . . . . . . . . . Relay Couplers Released . | . . . . . . . . . . . . . . . . Fabnet Peak Effective % . | . . . . . . . . . . . . . . . . Robots Rewired 4 | . . . . . . . . 4 . . . . . . . Allies Hacked . | . . . . . . . . . . . . . . . . Hacks Repelled . | . . . . . . . . . . . . . . . . Allies | -11 -10 -10 -9 -9 -9 -8 -8 -7 -7 -7 -7 -7 -7 -6 -6 -------- Run | Jun Mat Min Mat Min Exi Min Mat Fac Was Fac Low Low Dat Pro Fac Total Allies 33 | . . 1 . 2 . . . 7 19 2 . . . 1 1 Largest Group 19 | . . 1 . 2 2 . . 3 19 5 . . . 1 1 Highest-Rated Group 475 | . . 31 . 43 43 . . 60 475 145 . . . 96 26 Highest-Rated Ally 96 | . . 31 . 31 31 . . 34 35 31 . . . 96 26 Total Orders . | . . . . . . . . . . . . . . . . Ally Attacks 101 | . . . . . . . . 23 40 14 . . . 24 . Total Damage 3919 | . . . . . . . . 1129 1362 267 . . . 1161 . Kills 30 | . . . . . . . . 14 6 1 . . . 9 . Allies Corrupted . | . . . . . . . . . . . . . . . . Allies Melted . | . . . . . . . . . . . . . . . . Intel | -11 -10 -10 -9 -9 -9 -8 -8 -7 -7 -7 -7 -7 -7 -6 -6 ------- Run | Jun Mat Min Mat Min Exi Min Mat Fac Was Fac Low Low Dat Pro Fac Robot Analysis Total 4 | . 2 . . . . . 2 . . . . . . . . Derelict Logs Recovered 6 | . . 3 . 1 . . . . . . 2 . . . . Drone Launches . | . . . . . . . . . . . . . . . . Drone Recoveries . | . . . . . . . . . . . . . . . . Exploration | -11 -10 -10 -9 -9 -9 -8 -8 -7 -7 -7 -7 -7 -7 -6 -6 ------------- Run | Jun Mat Min Mat Min Exi Min Mat Fac Was Fac Low Low Dat Pro Fac Turns Passed 17445 | 151 1224 685 2680 1110 215 1004 2649 2569 151 1033 1248 823 23 748 1132 Spaces Moved 15182 | 62 660 519 1356 603 127 533 1152 3654 384 2389 1175 792 89 999 688 Core 8 | 2 . . . . . . . 6 . . . . . . . Treads 4516 | 60 660 18 925 603 127 533 1152 283 . . . . . . 155 Legs 52 | . . . . . . . . . . . . . . . 52 Wheels 1192 | . . 501 431 . . . . . . . . . . . 260 Hover 176 | . . . . . . . . . . . . . . . 176 Flight 9238 | . . . . . . . . 3365 384 2389 1175 792 89 999 45 Fastest Speed 26 | 50 160 105 95 170 170 170 170 26 26 26 26 26 26 26 56 Average Speed 76 | 156 160 106 148 170 170 170 170 38 26 26 26 26 26 31 117 Slowest Speed 295 | 160 160 160 240 170 170 170 170 250 26 91 26 26 26 94 295 Overloaded Moves . | . . . . . . . . . . . . . . . . Propulsion Burnouts . | . . . . . . . . . . . . . . . . Robots Hopped 25 | . . . . . . . . 11 . 14 . . . . . Cave-ins Triggered 2 | . . . . . . . 1 . . . . . . . 1 Exploration Rate (%) 74 | 5 98 93 96 98 49 98 88 64 96 59 95 73 70 92 14 Regions Visited 15 Branch Regions 8 Pre-discovered Areas 4 | . . . . 2 1 . . . . . . . 1 . . Known Exits Taken 5 | . . . . . . . . . . 1 1 1 1 1 . Unknown Exits Taken 8 | 1 1 1 1 1 1 1 1 . . . . . . . . Scrap Searched 16 | . . 3 . 2 . 1 . . . . 4 1 . 5 . Spaces Dug 143 | . . . . . . . . 73 7 34 7 11 . 3 8 Terrain Destroyed 483 | . . . . 11 . . 13 151 7 164 39 32 . 35 31 Melee 128 | . . . . . . . . 61 7 34 6 11 . 3 6 Projectile 43 | . . . . . . . . 20 . . 3 1 . 3 16 AOE 312 | . . . . 11 . . 13 70 . 130 30 20 . 29 9 Terrain Rammed . | . . . . . . . . . . . . . . . . Walls Destroyed . | . . . . . . . . . . . . . . . . Machines Disabled . | . . . . . . . . . . . . . . . . Actions | -11 -10 -10 -9 -9 -9 -8 -8 -7 -7 -7 -7 -7 -7 -6 -6 --------- Run | Jun Mat Min Mat Min Exi Min Mat Fac Was Fac Low Low Dat Pro Fac Total 19599 | 88 752 593 1771 657 126 581 1630 4529 420 2640 2089 1381 88 1413 841 Wait 3097 | . 7 29 201 30 . 6 231 583 18 131 888 568 . 395 10 Move 15123 | 61 659 518 1355 602 126 532 1151 3634 383 2363 1174 791 88 998 688 Hop 20 | . . . . . . . . 9 . 11 . . . . . Pick Up 86 | 6 13 3 23 2 . . 12 14 3 6 1 . . . 3 Fast Attach 79 | 7 2 . 4 . . 4 11 15 4 11 . . . . 21 Attach 45 | . . 4 8 2 . . 1 15 . 7 . . . . 8 Detach 25 | . 1 . . . . . 1 12 . 8 . . . . 3 Swap 98 | . 9 3 18 3 . 1 15 13 . 6 8 4 . 8 10 Drop 125 | . 12 2 31 1 . 1 25 31 5 12 . . . . 5 Fire 640 | 14 49 34 131 17 . 37 183 83 . 11 9 7 . 8 57 Melee 235 | . . . . . . . . 94 7 74 9 11 . 4 36 Ram . | . . . . . . . . . . . . . . . . Kick . | . . . . . . . . . . . . . . . . Crush . | . . . . . . . . . . . . . . . . Escape Stasis . | . . . . . . . . . . . . . . . . Rewire 26 | . . . . . . . . 26 . . . . . . . Trap . | . . . . . . . . . . . . . . . . Miscellaneous . | . . . . . . . . . . . . . . . . Route ------- -11/Junkyard -10/Materials (discovered 5 exits: *Mat x3 / [*Min x2]) -10/Mines (discovered 2 exits: *Mat x2) -9/Materials (discovered 4 exits: *Mat x3 / *Min) -9/Mines (discovered 3 exits: *Mat x2 / *Exi) -9/Exiles -8/Mines (discovered 2 exits: *Mat x2) -8/Materials (discovered 2 exits: *Fac x2) -7/Factory (discovered 4 exits: *Fac / [*Sto] / *Low x2) -7/Waste -7/Factory (discovered 4 exits: *Fac x2 / *Low x2) -7/Lower Caves -7/Lower Caves (discovered 2 exits: *Fac / *Dat) -7/Data Miner -6/Proximity Caves -6/Factory (discovered 1 exit: Low) History --------- Turn | Location | Event 51 | -11/Junkyard | Discovered new exit (range 16) 152 | -11/Junkyard | Entered Materials 264 | -10/Materials | Discovered new exit (range 15) 306 | -10/Materials | Build established: Mutant 511 | -10/Materials | Discovered new exit (range 16) 683 | -10/Materials | Discovered new exit (range 8) 704 | -10/Materials | Discovered new exit (range 15) 1024 | -10/Materials | Discovered new exit (range 6) 1376 | -10/Materials | Entered Mines 1377 | -10/Mines | Assembled infested the area 1460 | -10/Mines | Core integrity fell below 50% 1520 | -10/Mines | Lost 4 parts (2n1u1w) 1605 | -10/Mines | Learned Materials stockpile data 1669 | -10/Mines | Learned Materials emergency access door positions 1731 | -10/Mines | Received a Mining Laser from a helpful Derelict 1831 | -10/Mines | Discovered new exit (range 12) 1969 | -10/Mines | Learned Materials terminal intel 1972 | -10/Mines | Found a damaged Exp. Sensor Array with a note attached 1974 | -10/Mines | Found Prototype Device 1991 | -10/Mines | Discovered new exit (range 3) 2061 | -10/Mines | Entered Materials 2061 | -9/Materials | Evolved 2 slots: Propulsion x1, Utility x1 2064 | -9/Materials | Loaded intel: 12 terminal locations 2426 | -9/Materials | Discovered new exit (range 5) 2631 | -9/Materials | Identified Exp. Sensor Array 2695 | -9/Materials | Lost 3 parts (1n1u1w) 2830 | -9/Materials | Repaired Broken Exp. Sensor Array 2856 | -9/Materials | Build established: Scavenger-Mutant 3006 | -9/Materials | Discovered new exit (range 7) 3023 | -9/Materials | Lost 3 parts (1p2n) 3337 | -9/Materials | Discovered new exit (range 14) 3456 | -9/Materials | Build established: Mutant 3528 | -9/Materials | Discovered new exit (range 8) 4741 | -9/Materials | Entered Mines 4927 | -9/Mines | Discovered new exit (range 8) 4964 | -9/Mines | Discovered new exit (range 14) 5017 | -9/Mines | Build established: Scavenger-Mutant 5038 | -9/Mines | Learned location of Storage (-7) 5177 | -9/Mines | A weapon hastily lodged in a ceiling crevice suddenly fell to the ground 5336 | -9/Mines | Learned location of Recycling (-7) 5564 | -9/Mines | Deemed a non-threat by the Exiles lab entrance 5566 | -9/Mines | Discovered new exit (range 5) 5580 | -9/Mines | Build established: Mutant 5743 | -9/Mines | Met a Derelict who couldn't figure out how to use a Trap Extractor 5851 | -9/Mines | Entered Exiles 5851 | -9/Exiles | Accompanied by 2 allies 5881 | -9/Exiles | Led the pair of lost Derelicts to a safe place 5894 | -9/Exiles | Met 8R-AWN 5921 | -9/Exiles | Met EX-HEX 5987 | -9/Exiles | Met EX-DEC 5998 | -9/Exiles | Learned location of Zion (-6) 6052 | -9/Exiles | Discovered new exit (range 10) 6066 | -9/Exiles | Entered Mines 6364 | -8/Mines | Discovered new exit (range 8) 6712 | -8/Mines | Core integrity fell below 50% 6880 | -8/Mines | Discovered new exit (range 10) 7070 | -8/Mines | Entered Materials 7070 | -8/Materials | Evolved 2 slots: Utility x2 7887 | -8/Materials | Build established: Hacker-Mutant 8577 | -8/Materials | Discovered new exit (range 16) 8690 | -8/Materials | Repaired Enh. Autogun 9199 | -8/Materials | Garrison activated, responded to threat 9459 | -8/Materials | Crushed by falling debris 9470 | -8/Materials | First assault squad dispatched 9647 | -8/Materials | Discovered new exit (range 6) 9719 | -8/Materials | Entered Factory 9719 | -7/Factory | Evolved 2 slots: Propulsion x1, Utility x1 9760 | -7/Factory | Build established: Mutant 9829 | -7/Factory | Garrison activated, responded to threat 10120 | -7/Factory | Build established: Hacker-Mutant 10310 | -7/Factory | System Shield fried by hacking feedback 10420 | -7/Factory | Lost 3 parts (2n1u) 10603 | -7/Factory | Discovered new exit (range 5) 10604 | -7/Factory | Identified exit to Lower Caves 10613 | -7/Factory | Garrison activated, responded to threat 10667 | -7/Factory | Discovered exit to Lower Caves (range 16) 10833 | -7/Factory | Discovered new exit (range 14) 10889 | -7/Factory | Build established: Hacker-Sprinter 10932 | -7/Factory | Discovered new exit (range 11) 10997 | -7/Factory | Repaired Broken Hvy. Missile Launcher 11000 | -7/Factory | Identified exit to Factory 11312 | -7/Factory | Cargo convoy interrupted 11841 | -7/Factory | Build established: Sprinter 11894 | -7/Factory | Fabricated B-48 Gladiator (x3) 12119 | -7/Factory | First assault squad dispatched 12288 | -7/Factory | Manually triggered Chute Trap 12288 | -7/Factory | Sucked down chute 12288 | -7/Factory | Entered Waste 12302 | -7/Waste | Spotted C-40 Crusher 12303 | -7/Waste | EMP discharged 12316 | -7/Waste | Spotted C-40 Crusher 12323 | -7/Waste | Spotted C-40 Crusher 12335 | -7/Waste | Spotted C-40 Crusher 12336 | -7/Waste | Spotted C-40 Crusher 12340 | -7/Waste | System corruption reached 10% 12347 | -7/Waste | Spotted C-40 Crusher 12372 | -7/Waste | Discovered new exit (range 15) 12378 | -7/Waste | Met Warlord forces unprepared to attack 12403 | -7/Waste | EMP discharged 12422 | -7/Waste | Allies destroyed C-40 Crusher 12426 | -7/Waste | Identified exit to Factory 12439 | -7/Waste | Entered Factory 12439 | -7/Factory | Accompanied by 5 allies 12468 | -7/Factory | Discovered exit to Lower Caves (range 8) 12487 | -7/Factory | Discovered exit to Lower Caves (range 11) 12691 | -7/Factory | Garrison activated, responded to threat 12712 | -7/Factory | Discovered exit to Factory (range 12) 12726 | -7/Factory | Fabricated Y-45 Defender? 12773 | -7/Factory | Build established: Hacker-Sprinter 12885 | -7/Factory | Discovered exit to Factory (range 9) 13140 | -7/Factory | Fabricated Exp. Sensor Array? 13239 | -7/Factory | First assault squad dispatched 13346 | -7/Factory | Fabricated System Restoration Module? 13472 | -7/Factory | Entered Lower Caves 13515 | -7/Lower Caves | Encountered a Warlord checkpoint 13764 | -7/Lower Caves | Build established: Scout 13907 | -7/Lower Caves | Learned location of 1 exit from Factory 14391 | -7/Lower Caves | Discovered new exit (range 8) 14503 | -7/Lower Caves | Learned 4 Factory zone layouts 14710 | -7/Lower Caves | Spotted B-75 Beast 14720 | -7/Lower Caves | Identified exit to Lower Caves 14720 | -7/Lower Caves | Entered another Lower Caves area 14883 | -7/Lower Caves | Discovered exit to Factory (range 11) 14896 | -7/Lower Caves | Attracted the attention of an 0b10 checkpoint 14905 | -7/Lower Caves | Spotted B-75 Beast 15413 | -7/Lower Caves | Encountered a Warlord checkpoint 15502 | -7/Lower Caves | Discovered new exit (range 5) 15503 | -7/Lower Caves | Identified exit to Data Miner 15543 | -7/Lower Caves | Entered Data Miner 15543 | -7/Data Miner | Discovered new exit (range 6) 15548 | -7/Data Miner | Met Data Miner 15554 | -7/Data Miner | Learned location of Section 7 (-2) 15554 | -7/Data Miner | Acquired the access code to Warlord's prototype stash 15558 | -7/Data Miner | Received God Mode back door access code from Data Miner 15566 | -7/Data Miner | Identified exit to Proximity Caves 15566 | -7/Data Miner | Entered Proximity Caves 15755 | -6/Proximity Caves | Core integrity fell below 50% 15777 | -6/Proximity Caves | Escorted by Enhanced Grunt 16071 | -6/Proximity Caves | Discovered exit to Factory (range 13) 16314 | -6/Proximity Caves | Entered Factory 16314 | -6/Factory | Evolved 2 slots: Utility x2 16315 | -6/Factory | Identified exit to Lower Caves 16471 | -6/Factory | Crushed by falling debris 16502 | -6/Factory | Lost 3 parts (2n1u) 16710 | -6/Factory | Incoming investigation squad redirected 16864 | -6/Factory | Lost 9 parts (1p4n4u) 17084 | -6/Factory | Spotted B-75 Beast 17126 | -6/Factory | Destroyed B-75 Beast 17143 | -6/Factory | Build established: Scavenger-Mutant 17156 | -6/Factory | Lost 6 parts (3n2u1w) 17200 | -6/Factory | Core integrity fell below 50% 17446 | -6/Factory | Self-destructed Last Messages --------------- 17425_ K-01 Serf collects debris. 17425_ U-05 Engineer knocked back. 17428_ H-66 Slayer knocked back. 17429_ Penetrated by Slug. 17429_ K-01 Serf collects debris. 17430_ Penetrated by Slug. 17431_ H-66 Slayer knocked back. 17432_ Penetrated by Slug. 17432_ Critical hit (Destroy). 17432_ K-01 Serf collects debris. 17433_ Penetrated by Slug. 17436_ K-01 Serf collects debris. 17437_ H-66 Slayer destroyed. 17438_ Med. Storage Unit destroyed. 17439_ K-01 Serf collects debris. 17440_ H-66 Slayer knocked back. 17442_ Penetrated by Slug. 17443_ System corrupted: Matter fused (-7). 17443_ K-01 Serf collects debris. 17445_ Penetrated by Slug. Map ----- +----------------------------------------------------+ | | | | | | | | | | | | | | | | | | | | | | | ???????????????????????????????????###########???? | | #??????????????????????????????????# * #???? | | #???????????????????????####???????# #???? | | ?????????????#####??????# %#???????# ##??? | | ?????????????# ####### ######### [% ##??? | | ?????????????# [ % "#####+######??? | | ?????????????# % % ! % #???????? | | ?????????????# % *#???????? | | ?????????????## " % "" ###" "% "%* #???????? | | ?????????###### """ "" #### " "G" #???????? | | ?????????# "F k % " # "" " " " [#???????? | | ?????????# "" % """ #""" " #???????? | | ?????????+ % %%h "" #"T " #???????? | | #????????# %%%% %#""" " #???????? | | ?????????# g[%gu/@=]# "" " ### ??? | | #????????###### g######/###### " * ???? | | #?????????????# ### % %[ # " ### ???? | | ############### # #% % # #???????? | | ## # ##" # #???????? | | ## # ### # #### #?##?###? | | ## # #?###########+#### ##"# ?? | | ## [ # #???# # + ""?? | | ## # #???# # # ???? | | ## # #???# # #????? | | ## # #???# # #????? | | ## # #???# # #????? | | ## # #???############## #????? | | ## # #########??# #! ! " | | ##?? ?# ## == #??# % #????? | | ## ??# !## * #### #????? | | ########+###### %*##*""" + | | *!=+%""" ####### ##### | | ########*#!""" #?????# #?????? | | ##??#### # #?????# #???????? | | ##??#### ###########??# #???????? | | ###### #! #??# #???????? | | ################# # """ ???# #???????? | | ##########?### [ + """"" ???# #???????? | | ??#??#??????## ## ! # """"" ??? #???????? | +----------------------------------------------------+ Best States ------------- Heat Dissipation 61 Coolant Potential 65 Energy Generation 18 Energy Capacity 290 Matter Stores 300 Matter Capacity 300 Sight Range 20 Robot Scan Range 20 Terrain Scan Range 16 Terrain Scan Density 110 Jamming Range 12 Corruption Block 8 Armor Coverage 750 Resistance: TH 10 Evasion (%) 76 Melee Accuracy 6 Recoil Reduction 7 Offensive Hacking 20 Defensive Hacking 10 Item Schematics ----------------- Exp. Sensor Array | -8/Materials | Scanalyzed System Restoration Module | -7/Factory | Hacked Imp. Terrain Scanner | -7/Factory | Scanalyzed Hvy. Missile Launcher | -7/Factory | Scanalyzed System Shield | -7/Factory | Scanalyzed Hacking Suite | -7/Factory | Hacked Combat Drone Bay | -7/Data Miner | Free Lgt. Regenerative Plating | -7/Data Miner | Free Cld. Aerolev Unit | -7/Data Miner | Free Exp. Targeting Computer | -7/Data Miner | Free Antimatter Cannon | -7/Data Miner | Free Hvy. Treads | -7/Data Miner | Free Imp. Shock Absorption System | -7/Data Miner | Free Enh. Gauss Cannon | -7/Data Miner | Free Antigrav System | -7/Data Miner | Free Myomer Leg | -7/Data Miner | Free Adv. Coolant Injector | -7/Data Miner | Free Robot Schematics ------------------ Y-54 Guardian | -7/Data Miner | Free G-47 Trooper | -7/Data Miner | Free M-14 Sweeper | -7/Data Miner | Free X-67 Chaingunner | -7/Data Miner | Free A-15 Conveyor | -7/Data Miner | Free Y-64 Sentinel | -7/Data Miner | Free Fabricated ------------ B-48 Gladiator | x3 | -7/Factory | Preloaded Y-45 Defender | x2 | -7/Factory | Preloaded Exp. Sensor Array | x1 | -7/Factory System Restoration Module | x2 | -7/Factory Alien Tech Used ----------------- None Achievements -------------- None Challenges ------------ None Game ------ Seed MeleeCatalystBlade Manual? 0 Play Time 02:29:11 Cumulative 605.7 hours Start 2023.03.28 @ 15:32:16 End 2023.03.29 @ 11:33:38 Sessions 1 Manual Loads 0 Difficulty Rogue Special Mode None Game No. 625 Rogue 624 Adventurer 0 Explorer 1 Win Type - Total 29 Types 20/0/6/3/0/0/0/0/0 Lore% 84 Gallery% 92 Achievement% 77 Wizard Run 0 Options --------- ASCII 0 Keyboard 1 Movement Vi Keybinds 0 Fullscreen 1 Font 18/SmallcapsGlow Map View 76x50 Tactical HUD 1 Map Filters NONE Filters NONE Steam 1 RUN: 3d76deac-d461-4428-bc38-06988f643b91